Cogmind - Beta 13 @@@ ROGUE MODE // 2024.04.05 @ 17:09:51 Player: Exclain Result: Destroyed by G-47 Trooper with Particle Gun Performance ------------- Evolutions (2) 1000 Regions Visited (5) 1000 Robots Destroyed (43) 215 Value Destroyed (1504) 1504 Prototype IDs (0) 0 Alien Tech Used (0) 0 Bonus (25) 25 TOTAL SCORE: 3744 Bonus ------- High Alert Combat Kills 25 Cogmind --------- Core Integrity 0/550 Matter 182/450 Energy 100/100 System Corruption 1% Temperature Hot (293) Movement Walking (126) Location -8/Materials Parts ------- > --- POWER (2) -------- (None) > --- PROPULSION (3) --- Aluminum Leg Improved Titanium Leg Improved Titanium Leg > --- UTILITY (3) ------ Compact Matter Pod Improved Weapon Shielding > --- WEAPON (3) ------- Medium Laser Particle Gun > --- INVENTORY (5) ---- Aluminum Leg Carbon-fiber Leg Carbon-fiber Leg Peak State ------------ > --- POWER ------------ Light Nuclear Core Hybrid Deuterium Engine > --- PROPULSION ------- Aluminum Leg Improved Titanium Leg Improved Titanium Leg > --- UTILITY ---------- Improved Weapon Shielding > --- WEAPON ----------- Medium Laser Particle Gun Ion Cannon > --- INVENTORY -------- Aluminum Leg [Rating: 25] Favorites ----------- Power Light Ion Engine Engine Light Ion Engine Power Core Light Nuclear Core Propulsion Aluminum Leg Treads Advanced Treads Leg Aluminum Leg Wheel Armored Wheel Utility Small Storage Unit Device Heat Sink Storage Small Storage Unit Processor Improved Targeting Computer Protection Core Shielding Weapon Assault Rifle Energy Gun Particle Gun Energy Cannon Ion Cannon Ballistic Gun Assault Rifle Launcher Mini Grenade Launcher Build | -11 -10 -10 -10 -9 -8 ------- Run | Yrd Mat Min Exi Min Mat Slots Evolved 4 | . . . . . 4 Power 1 | . . . . . 1 Propulsion 1 | . . . . . 1 Utility 1 | . . . . . 1 Weapon 1 | . . . . . 1 Parts Attached 60 | 5 6 2 . 5 42 Power 11 | 1 1 1 . 1 7 Engine 7 | 1 1 1 . 1 3 Core 4 | . . . . . 4 Reactor . | . . . . . . Propulsion 19 | 2 2 1 . 1 13 Treads 1 | . . . . . 1 Leg 9 | . 2 1 . 1 5 Wheel 9 | 2 . . . . 7 Hover . | . . . . . . Flight . | . . . . . . Utility 7 | . 2 . . 1 4 Device 1 | . 1 . . . . Storage 3 | . 1 . . . 2 Processor 1 | . . . . . 1 Hackware . | . . . . . . Protection 2 | . . . . 1 1 Artifact . | . . . . . . Weapon 23 | 2 1 . . 2 18 Energy Gun 7 | 1 . . . 1 5 Energy Cannon 2 | . . . . . 2 Ballistic Gun 11 | 1 1 . . 1 8 Ballistic Cannon . | . . . . . . Launcher 3 | . . . . . 3 Special Weapon . | . . . . . . Impact Weapon . | . . . . . . Slashing Weapon . | . . . . . . Piercing Weapon . | . . . . . . Special Melee Weapon . | . . . . . . Unidentified Prototypes . | . . . . . . Parts Lost 25 | . . 1 . . 24 Power 7 | . . 1 . . 6 Propulsion 6 | . . . . . 6 Utility 3 | . . . . . 3 Weapon 9 | . . . . . 9 Highest Loss Streak 14 | . . 1 . . 14 To Critical Strikes . | . . . . . . Average Slot Usage (%) 92 | . 96 99 100 100 82 Engine 11 | . 14 13 14 14 7 Core 2 | . . . . . 5 Leg 16 | . 16 28 28 28 3 Wheel 9 | . 11 . . . 19 Device 6 | . 12 14 14 3 . Storage 11 | . 12 14 14 14 9 Processor 1 | . . . . . 3 Protection 5 | . . . . 10 8 Energy Gun 3 | . 3 . . 1 7 Energy Cannon 2 | . . . . . 5 Ballistic Gun 19 | . 24 28 28 26 8 Naked Turns 2 | . . . . . 2 Heaviest Build 31 | 6 12 12 12 12 31 Greatest Support 50 | 20 20 20 20 20 50 Greatest Overweight (x) 1 | . . . . . 1 Average Overweight (x) . | . . . . . . Largest Inventory Capacity 8 | 5 8 8 8 8 8 Average Capacity 7 | 5 7 8 8 8 5 Most Carried 8 | 5 8 8 6 8 8 Average Carried 5 | 2 6 6 6 7 4 Final Capacity 8 | 5 8 8 8 8 5 Final Carried 8 | 3 8 6 6 8 3 Class Distribution -------------------- 69% | Mutant 15% | Gunner 11% | Tank Dominant Class ---------------- Mutant | -10/Materials Mutant | -10/Mines Mutant | -10/Exiles Mutant | -9/Mines Gunner | -8/Materials Resources | -11 -10 -10 -10 -9 -8 ----------- Run | Yrd Mat Min Exi Min Mat Matter Collected 1197 | 253 94 74 . 78 698 Remotely . | . . . . . . Salvage Created 1354 | 34 174 18 . 59 1069 Parts 72 | 1 15 . . 8 48 Haulers Intercepted 1 | . . . . . 1 Recyclers Shooed 1 | . . . . . 1 Parts Field Recycled . | . . . . . . Retrieved Matter . | . . . . . . Parts Self-Destructed . | . . . . . . Prevented . | . . . . . . Kills | -11 -10 -10 -10 -9 -8 ------- Run | Yrd Mat Min Exi Min Mat Combat Hostiles Destroyed 37 | 1 6 1 . 4 25 Guns 27 | 1 6 1 . 4 15 Cannons 1 | . . . . . 1 AOE 9 | . . . . . 9 Classes Destroyed 11 | 1 1 1 . . 8 Worker 4 | . . . . . 4 Builder 1 | . . . . . 1 Hauler 1 | . . . . . 1 Recycler 1 | . . . . . 1 Swarmer 7 | . 3 . . 4 . Grunt 19 | 1 3 . . . 15 Sentry 4 | . . . . . 4 Specialist 2 | . . . . . 2 Hunter 3 | . . . . . 3 Heavy 1 | . . . . . 1 Assembled 1 | . . 1 . . . Best Kill Streak 10 | 1 3 1 . 2 10 Combat Bots Only 5 | 1 3 1 . 2 5 Max Kills in Single Turn 3 | 1 1 1 . 1 3 Gunslinging 1 | . . . . . 1 Exploded 2 | . . . . . 2 Melee . | . . . . . . Uniques/NPCs Destroyed . | . . . . . . Combat | -11 -10 -10 -10 -9 -8 -------- Run | Yrd Mat Min Exi Min Mat Hostile Shots Fired 281 | 6 22 16 . 18 219 Missed 78 | 3 5 4 . 6 60 Damage Taken 3521 | 33 168 202 . 97 3021 Core 627 | . 31 19 . 19 558 Absorbed by Shields . | . . . . . . Redirected to Shielding 104 | . . . . . 104 Core Remaining (%) 86 | 100 . . . 72 . Volleys Fired 117 | 4 13 5 . 8 87 Largest 3 | 2 2 2 . 2 3 Hottest 190 | 60 60 40 . 40 190 Shots Fired 265 | 7 26 10 . 16 206 Gun 216 | 7 26 10 . 16 157 Cannon 31 | . . . . . 31 Launcher 18 | . . . . . 18 Special . | . . . . . . Kinetic 159 | 3 20 10 . 16 110 Thermal 78 | . . . . . 78 Explosive 18 | . . . . . 18 Electromagnetic 10 | 4 6 . . . . Robot Hit Streak 16 | 3 4 2 . 4 16 Robot Miss Streak 8 | 4 3 3 . 2 8 Penetration Max . | . . . . . . Secondary Targets 5 | . 1 1 . 1 2 Max Gunslinging Chain 1 | . 1 1 . 1 1 Shots Hit Robots 156 | 3 14 5 . 9 125 Core Hits 109 | 2 11 5 . 6 85 Critical Kills . | . . . . . . Critical Parts Destroyed . | . . . . . . Critical Strikes . | . . . . . . Melee Attacks . | . . . . . . Impact . | . . . . . . Slashing . | . . . . . . Piercing . | . . . . . . Sneak Attacks . | . . . . . . Combat Hostiles . | . . . . . . Follow-up Attacks . | . . . . . . Damage Inflicted 3358 | 31 149 48 . 87 3043 Guns 1845 | 31 149 48 . 87 1530 Cannons 394 | . . . . . 394 Explosions 1113 | . . . . . 1113 Melee . | . . . . . . Ramming 6 | . . . . . 6 Kinetic 1241 | 16 99 48 . 87 991 Thermal 1067 | . . . . . 1067 Explosive 979 | . . . . . 979 Electromagnetic 65 | 15 50 . . . . Impact . | . . . . . . Slashing . | . . . . . . Piercing . | . . . . . . Highest Corruption 1 | . . . . . 1 Average Corruption 1 | . . . . . 1 Corruption Purged . | . . . . . . Corruption Blocked . | . . . . . . Effects 1 | . . . . . 1 Message Errors 1 | . . . . . 1 Overload Shots . | . . . . . . Overflow Damage 83 | . . . . . 83 Projectiles . | . . . . . . Explosions 83 | . . . . . 83 Melee . | . . . . . . Knockbacks . | . . . . . . Impact . | . . . . . . Kinetic . | . . . . . . Secondary . | . . . . . . Self-Inflicted Damage 204 | . . . . . 204 Shots 5 | . . . . . 5 Rammed 1 | . . . . . 1 Targets Rammed 1 | . . . . . 1 Kicked . | . . . . . . Crushed . | . . . . . . Highest Temperature 498 | 26 . . . . 498 Average Temperature 105 | 12 . . . . 109 Received Heat Transfer 1131 | 18 60 . . . 1053 Effects 3 | . . . . . 3 Shutdowns 1 | . . . . . 1 Interference 1 | . . . . . 1 Short Circuit 1 | . . . . . 1 Siege Activations . | . . . . . . Robots Corrupted . | . . . . . . Combat Hostiles . | . . . . . . Parts Fried . | . . . . . . Impact Corruptions . | . . . . . . Robots Melted . | . . . . . . Combat Hostiles . | . . . . . . Parts Melted 1 | . . . . . 1 Heat Transferred 1906 | . . . . . 1906 Parts Sabotaged . | . . . . . . Parts Stolen . | . . . . . . Parts Stripped . | . . . . . . Power Chain Reactions . | . . . . . . Alert | -11 -10 -10 -10 -9 -8 ------- Run | Yrd Mat Min Exi Min Mat Peak Influence 418 | 20 208 81 . 70 418 Initial 81 | . 13 81 . . 19 Average 161 | 2 150 71 . 50 238 Maximum Alert Level 2 | . 1 . . . 2 Low Security (%) 54 | 100 56 100 . 100 23 Level 1 43 | . 43 . . . 72 Level 2 2 | . . . . . 4 Level 3 . | . . . . . . Level 4 . | . . . . . . Level 5 . | . . . . . . High Security . | . . . . . . Max Security . | . . . . . . Squads Dispatched 7 | . 2 . . . 5 Investigation 2 | . 1 . . . 1 Extermination . | . . . . . . Reinforcement 5 | . 1 . . . 4 Assault . | . . . . . . Garrison . | . . . . . . Intercept . | . . . . . . Searches Triggered . | . . . . . . Construction Impeded 1 | . . . . . 1 Haulers Reinforced . | . . . . . . Active Scanning Responses . | . . . . . . Cargo Convoy Interrupts . | . . . . . . Stealth | -11 -10 -10 -10 -9 -8 --------- Run | Yrd Mat Min Exi Min Mat Distress Signals 4 | . . 1 . . 3 Communications Jammed . | . . . . . . Distress Signals . | . . . . . . Times Spotted 62 | 1 8 9 . 6 38 Peak Tracking Total 10 | 1 3 8 . 4 10 Tactical Retreats 2 | . 1 . . 1 . Traps | -11 -10 -10 -10 -9 -8 ------- Run | Yrd Mat Min Exi Min Mat Traps Triggered 2 | . 1 . . . 1 Indirectly . | . . . . . . Trap Hack Attempts . | . . . . . . Triggered . | . . . . . . Disarmed . | . . . . . . Reprogrammed . | . . . . . . Reused . | . . . . . . Traps Extracted . | . . . . . . Installed . | . . . . . . Triggered . | . . . . . . Machines | -11 -10 -10 -10 -9 -8 ---------- Run | Yrd Mat Min Exi Min Mat Machines Disabled 5 | . . . . . 5 Max in Single Turn 3 | . . . . . 3 Machines Repaired . | . . . . . . Machines Dismantled . | . . . . . . Machines Sabotaged . | . . . . . . Overloaded Fab Kills . | . . . . . . Hacking | -11 -10 -10 -10 -9 -8 --------- Run | Yrd Mat Min Exi Min Mat Machines Accessed 6 | . 1 . 3 . 2 Terminals 3 | . 1 . . . 2 Fabricators . | . . . . . . Repair Stations . | . . . . . . Recycling Units . | . . . . . . Scanalyzers . | . . . . . . Garrison Access . | . . . . . . Total Hacks 48 | . 2 . 42 . 4 Successful 48 | . 2 . 42 . 4 Failed . | . . . . . . Catastrophic . | . . . . . . Database Lockouts . | . . . . . . Manual . | . . . . . . Terminals 6 | . 2 . . . 4 Fabricators . | . . . . . . Repair Stations . | . . . . . . Recycling Units . | . . . . . . Scanalyzers . | . . . . . . Garrison Access . | . . . . . . Terminal Hacks 48 | . 2 . 42 . 4 Record 47 | . 2 . 42 . 3 Locate Traps 1 | . . . . . 1 Fabricator Hacks . | . . . . . . Repair Station Hacks . | . . . . . . Recycling Unit Hacks . | . . . . . . Scanalyzer . | . . . . . . Garrison Access Hacks . | . . . . . . Unauthorized Hacks . | . . . . . . Terminals . | . . . . . . Fabricators . | . . . . . . Repair Stations . | . . . . . . Recycling Units . | . . . . . . Scanalyzers . | . . . . . . Garrison Access . | . . . . . . Data Cores Recovered . | . . . . . . Used . | . . . . . . Hacking Detections 2 | . . . . . 2 Full Trace Events 1 | . . . . . 1 Feedback Events . | . . . . . . Feedback Blocked . | . . . . . . Robot Schematics Acquired . | . . . . . . Robots Built . | . . . . . . Authchips . | . . . . . . Time . | . . . . . . Total Robot Build Rating . | . . . . . . Part Schematics Acquired . | . . . . . . Parts Built . | . . . . . . Authchips . | . . . . . . Time . | . . . . . . Total Part Build Rating . | . . . . . . Parts Repaired . | . . . . . . Time . | . . . . . . Parts Recycled . | . . . . . . Recycled Matter . | . . . . . . Retrieved Matter . | . . . . . . Retrieved Components . | . . . . . . Parts Scanalyzed . | . . . . . . Part Schematics Acquired . | . . . . . . Parts Damaged . | . . . . . . Bothacking | -11 -10 -10 -10 -9 -8 ------------ Run | Yrd Mat Min Exi Min Mat Used RIF Installer . | . . . . . . Robots Hacked . | . . . . . . Non-combat . | . . . . . . Combat . | . . . . . . Robot Hacks Applied . | . . . . . . Relay Couplers Released . | . . . . . . Fabnet Peak Effective % . | . . . . . . Robots Rewired . | . . . . . . Allies Hacked . | . . . . . . Hacks Repelled . | . . . . . . Allies | -11 -10 -10 -10 -9 -8 -------- Run | Yrd Mat Min Exi Min Mat Total Allies . | . . . . . . Largest Group . | . . . . . . Highest-Rated Group . | . . . . . . Highest-Rated Ally . | . . . . . . Total Orders . | . . . . . . Ally Attacks . | . . . . . . Total Damage . | . . . . . . Kills . | . . . . . . Allies Corrupted . | . . . . . . Allies Melted . | . . . . . . Intel | -11 -10 -10 -10 -9 -8 ------- Run | Yrd Mat Min Exi Min Mat Robot Analysis Total . | . . . . . . Derelict Logs Recovered 2 | . . . . 2 . Drone Launches . | . . . . . . Drone Recoveries . | . . . . . . Exploration | -11 -10 -10 -10 -9 -8 ------------- Run | Yrd Mat Min Exi Min Mat Turns Passed 2630 | 83 265 149 635 461 1037 Spaces Moved 2004 | 84 199 111 530 354 726 Core 40 | 23 . . . . 17 Treads . | . . . . . . Legs 1190 | . 115 111 530 354 80 Wheels 774 | 61 84 . . . 629 Hover . | . . . . . . Flight . | . . . . . . Fastest Speed 50 | 50 80 120 120 120 50 Average Speed 106 | 71 103 120 120 120 93 Slowest Speed 126 | 80 120 120 120 120 126 Overloaded Moves . | . . . . . . Propulsion Burnouts . | . . . . . . Robots Hopped . | . . . . . . Cave-ins Triggered . | . . . . . . Exploration Rate (%) 37 | 6 31 24 81 50 35 Regions Visited 5 Branch Regions 3 Pre-discovered Areas 2 | . . . 1 1 . Known Exits Taken . | . . . . . . Unknown Exits Taken 5 | 1 1 1 1 1 . Scrap Searched 1 | . . . . 1 . Spaces Dug . | . . . . . . Terrain Destroyed 100 | . . . . . 100 Melee . | . . . . . . Projectile 2 | . . . . . 2 AOE 98 | . . . . . 98 Terrain Rammed . | . . . . . . Walls Destroyed . | . . . . . . Machines Disabled . | . . . . . . Actions | -11 -10 -10 -10 -9 -8 --------- Run | Yrd Mat Min Exi Min Mat Total 2280 | 100 236 118 529 376 921 Wait . | . . . . . . Move 1999 | 83 198 110 529 353 726 Hop . | . . . . . . Pick Up 69 | 8 13 . . 6 42 Fast Attach . | . . . . . . Attach 34 | 5 2 1 . 1 25 Detach . | . . . . . . Swap 26 | . 4 1 . 4 17 Drop 34 | . 6 1 . 4 23 Fire 117 | 4 13 5 . 8 87 Melee . | . . . . . . Ram 1 | . . . . . 1 Kick . | . . . . . . Crush . | . . . . . . Escape Stasis . | . . . . . . Rewire . | . . . . . . Trap . | . . . . . . Miscellaneous . | . . . . . . Route ------- -11/Scrapyard -10/Materials -10/Mines -10/Exiles -9/Mines -8/Materials (discovered 1 exit: Fac) History --------- Turn | Location | Event 2 | -11/Scrapyard | Met Revision 17 57 | -11/Scrapyard | Discovered new exit (range 8) 84 | -11/Scrapyard | Entered Materials 316 | -10/Materials | Build established: Mutant 328 | -10/Materials | Discovered new exit (range 12) 349 | -10/Materials | Entered Mines 350 | -10/Mines | Assembled infested the area 382 | -10/Mines | Met 8R-AWN 491 | -10/Mines | Discovered new exit (range 5) 498 | -10/Mines | Entered Exiles 540 | -10/Exiles | Welcomed by 8R-AWN 568 | -10/Exiles | Met EX-HEX 626 | -10/Exiles | Met EX-DEC 673 | -10/Exiles | Visited The Gauntlet 869 | -10/Exiles | Learned location of Zion (-7) 910 | -10/Exiles | Met EX-BIN 1073 | -10/Exiles | Learned about 8R-AWN's background 1109 | -10/Exiles | Discovered new exit (range 15) 1133 | -10/Exiles | Entered Mines 1235 | -9/Mines | Discovered new exit (range 14) 1594 | -9/Mines | Entered Materials 1594 | -8/Materials | Evolved 4 slots: Power x1, Propulsion x1, Utility x1, Weapon x1 1595 | -8/Materials | Identified exit to Factory 2209 | -8/Materials | Build established: Gunner 2352 | -8/Materials | Lost 4 parts (2u2w) 2405 | -8/Materials | Core integrity fell below 50% 2463 | -8/Materials | Core integrity fell below 20% 2503 | -8/Materials | Lost 14 parts (1p5n1u7w) 2631 | -8/Materials | Destroyed by G-47 Trooper with Particle Gun Last Messages --------------- The floor emits a surge of raw power. System corrupted (+1). Acquired Med. Laser. T-07 Excavator is excavating. Dropped Ion Cannon. Acquired Com. Matter Pod. Acquired Carbon-fiber Leg. U-05 Engineer lays Concrete. Acquired Carbon-fiber Leg. K-01 Serf collects debris. W-25 Informer sends out distress signal. K-01 Serf collects debris. BPZB >D&D7RPP Q:JWUMH1#2Z7 K-01 Serf collects debris. Hyb. Deuterium Engine destroyed. G-47 Trooper destroyed. Overheating: System interference. Med. Laser temporarily disabled. Lgt. Nuclear Core destroyed. [Achievement: First Step to Greatness] Map ----- +----------------------------------------------------+ | ?????????????????????????????????????????????????? | | ?????????????????????????????????????????????????? | | ?????????????????????????????????????????????????? | | ?????????????????????????????????????????????????? | | ?????????????????????????????????????????????????? | | ?????????????????????????????????????????????????? | | ?????????????????????????????????????????????????? | | ?????????????????????????????????????????????????? | | ?????????????????????????????????????????????????? | | ?????????????????????????????????????????????????? | | ???????????????????????####??????????????????????? | | ???????????????????????# #?????????????????????? | | ??????????????????????? #?????????????????????? | | ???????????????????????# #?????????????????????? | | ???????????????????????# #?????????????????????? | | ???????????????????????# #?????????????????????? | | ???????????????????????# #?????????????????????? | | ???????????????????????# #?????????????????????? | | ???????????????????????# ########??????????????? | | ???????????????????????# +??????????????? | | ???????????????????????# #???????????????? | | ???????????????????????# !!= #???????????????? | | ???????????????????????#^ !]= #???????????????? | | ???????????????????????# !== #???????????????? | | ???????????????????????# #???????????????? | | ???????????????????????# @ ####+#??????????? | | ???????????????????????# ! t #??????????? | | ???????????????????????# ! ##+#+#??????????? | | ???????????????????????# ####+##???????????????? | | ???????????????????????# #?????????????????????? | | ???????????????????????# %[#?????????????????????? | | ???????????#####+#######g=g#?????????????????????? | | ?????????# #?????????????????????? | | ?????????# #?????????????????????? | | ?????????# #####?????????????????? | | ?????????# #####+##### ==#???############??? | | ???????????????????????# =#???# + ???? | | ???????????????????????# **#???# """ #????? | | ???????????????????????# *#???# """ ###### | | ???????????????????????# !!#???# """ # | | ???????????????????????# = !!#???# %+= | | ??????????????????????## !%#####???# [ # """ | | ??????????????????????# * ######## "T" # """ | | ??????????????????????# / / ## "" # """ | | ??????????????????????# # ## # =% # | | ?????????????????###### #%##########+######+## | | ?????????? ! % = | | ????????????????######## ### = | | ???????????????????????# ### [ [ | | ???????????????????????# # ####/#############+## | +----------------------------------------------------+ Best States ------------- Heat Dissipation 35 Energy Generation 21 Energy Capacity 860 Matter Stores 305 Matter Capacity 450 Sight Range 16 Terrain Scan Density 10 Core Shielding 20 Weapon Shielding 66 Evasion (%) 55 Targeting Accuracy 6 Recoil Reduction 1 Item Schematics ----------------- None Robot Schematics ------------------ None Fabricated ------------ Nothing Alien Tech Used ----------------- None Achievements -------------- Crack Shot First Step to Greatness I Survived The Infestation Librarian Loot Pinata One Hack Too Far Storm Trooper Tourist Uninvited Guest Challenges ------------ None Game ------ Seed TeslaGlidesysGenerator Manual? 0 Play Time 00:47:54 Cumulative 0.7 hours Start 2024.04.01 @ 12:37:27 End 2024.04.05 @ 17:09:51 Sessions 3 Manual Loads 0 Difficulty Rogue Special Mode None Game No. 1 Rogue 1 Adventurer 0 Explorer 0 Win Type - Total 0 Types 0/0/0/0/0/0/0/0/0 Lore% 7 Gallery% 3 Achievement% 3 Wizard Run 0 Options --------- Layout 1 ASCII 0 Keyboard 0 Movement Arrows Keybinds 0 Fullscreen 1 Font 24/Smallcaps Map View 50x35 Zoom Use 0% Tactical HUD 0 Map Filters NONE Filters NONE Steam 1 RUN: a3f81794-4e77-48e0-a2fc-d2f2801befe0